[Event "Titled Tuesday Blitz May 25 2021"]
[White "Lazavik, Denis"]
[Black "Injac, Teodora"]
[WhiteFideId "13515110"]
[BlackFideId "932400"]
[WhiteElo "2436"]
[BlackElo "2308"]
[Result "1-0"]
[Round "02"]
[TimeControl "180+1"]
[Date "2021.05.25"]
[WhiteClock "0:00:21"]
[BlackClock "0:00:15"]

1. d4 {[%clk 0:03:00]}  Nf6 {[%clk 0:02:59]} 2. c4 {[%clk 0:02:59]}  e6 {[%clk 0:03:00]} 3. Nf3 {[%clk 0:02:59]}  Bb4+ {[%clk 0:03:00]} 4. Bd2 {[%clk 0:02:59]}  a5 {[%clk 0:02:59]} 5. g3 {[%clk 0:02:57]}  O-O {[%clk 0:02:59]} 6. Bg2 {[%clk 0:02:56]}  d5 {[%clk 0:02:59]} 7. Qc2 {[%clk 0:02:55]}  c5 {[%clk 0:02:57]} 8. cxd5 {[%clk 0:02:51]}  cxd4 {[%clk 0:02:56]} 9. Nxd4 {[%clk 0:02:50]}  Qb6 {[%clk 0:02:56]} 10. e3 {[%clk 0:02:47]}  exd5 {[%clk 0:02:56]} 11. O-O {[%clk 0:02:47]}  Nc6 {[%clk 0:02:56]} 12. Nxc6 {[%clk 0:02:47]}  bxc6 {[%clk 0:02:57]} 13. Rc1 {[%clk 0:02:47]}  Rb8 {[%clk 0:02:57]} 14. b3 {[%clk 0:02:28]}  Bd7 {[%clk 0:02:20]} 15. Nc3 {[%clk 0:02:24]}  h5 {[%clk 0:02:09]} 16. Na4 {[%clk 0:02:19]}  Qc7 {[%clk 0:02:07]} 17. Nc5 {[%clk 0:02:10]}  Bxc5 {[%clk 0:02:00]} 18. Qxc5 {[%clk 0:02:08]}  h4 {[%clk 0:01:45]} 19. Bxa5 {[%clk 0:02:02]}  Qe5 {[%clk 0:01:45]} 20. Bc3 {[%clk 0:01:59]}  Qf5 {[%clk 0:01:43]} 21. Bxf6 {[%clk 0:01:51]}  Qxf6 {[%clk 0:01:42]} 22. Qd4 {[%clk 0:01:34]}  Qxd4 {[%clk 0:01:18]} 23. exd4 {[%clk 0:01:35]}  Rb4 {[%clk 0:01:18]} 24. Rd1 {[%clk 0:01:33]}  Re8 {[%clk 0:01:13]} 25. Bf1 {[%clk 0:01:15]}  Bg4 {[%clk 0:01:11]} 26. Rd2 {[%clk 0:01:10]}  Re4 {[%clk 0:01:04]} 27. a4 {[%clk 0:01:02]}  Rxb3 {[%clk 0:00:54]} 28. a5 {[%clk 0:01:01]}  Re7 {[%clk 0:00:52]} 29. a6 {[%clk 0:01:00]}  Ra7 {[%clk 0:00:52]} 30. Rc2 {[%clk 0:00:53]}  Rb6 {[%clk 0:00:52]} 31. Rac1 {[%clk 0:00:53]}  Bd7 {[%clk 0:00:47]} 32. gxh4 {[%clk 0:00:52]}  g6 {[%clk 0:00:46]} 33. f3 {[%clk 0:00:49]}  Kf8 {[%clk 0:00:46]} 34. Kf2 {[%clk 0:00:49]}  Ke7 {[%clk 0:00:46]} 35. Kg3 {[%clk 0:00:48]}  Kd6 {[%clk 0:00:46]} 36. Ra2 {[%clk 0:00:33]}  Rb4 {[%clk 0:00:46]} 37. Rd1 {[%clk 0:00:33]}  Bc8 {[%clk 0:00:42]} 38. Rdd2 {[%clk 0:00:33]}  Kc7 {[%clk 0:00:40]} 39. Kf4 {[%clk 0:00:30]}  Kd6 {[%clk 0:00:40]} 40. Kg5 {[%clk 0:00:30]}  Bf5 {[%clk 0:00:38]} 41. h5 {[%clk 0:00:28]}  Bb1 {[%clk 0:00:38]} 42. Rab2 {[%clk 0:00:27]}  Rxb2 {[%clk 0:00:33]} 43. Rxb2 {[%clk 0:00:27]}  Bf5 {[%clk 0:00:31]} 44. h6 {[%clk 0:00:28]}  Ke6 {[%clk 0:00:27]} 45. Re2+ {[%clk 0:00:27]}  Kd6 {[%clk 0:00:25]} 46. Re8 {[%clk 0:00:24]}  f6+ {[%clk 0:00:14]} 47. Kxf6 {[%clk 0:00:23]}  Rh7 {[%clk 0:00:15]} 48. Rd8+ {[%clk 0:00:21]}  Kc7 {[%clk 0:00:15]} 49. a7 {[%clk 0:00:21]} 1-0


[Site "https://www.chess.com"]

[Event "Titled Tuesday Blitz May 25 2021"]
[White "Martinez Alcantara, Jose Eduardo"]
[Black "Vetokhin, Savva"]
[WhiteFideId "3805662"]
[BlackFideId "44144474"]
[WhiteElo "2690"]
[BlackElo "2185"]
[Result "0-1"]
[Round "02"]
[TimeControl "180+1"]
[Date "2021.05.25"]
[WhiteClock "0:00:04"]
[BlackClock "0:00:44"]

1. e4 {[%clk 0:03:00]}  e5 {[%clk 0:02:59]} 2. Nf3 {[%clk 0:02:59]}  Nf6 {[%clk 0:02:59]} 3. Nxe5 {[%clk 0:02:56]}  d6 {[%clk 0:02:58]} 4. Nf3 {[%clk 0:02:57]}  Nxe4 {[%clk 0:02:59]} 5. Nc3 {[%clk 0:02:58]}  Nxc3 {[%clk 0:02:59]} 6. dxc3 {[%clk 0:02:59]}  Be7 {[%clk 0:02:59]} 7. Bf4 {[%clk 0:02:57]}  O-O {[%clk 0:03:00]} 8. Qd2 {[%clk 0:02:58]}  Nd7 {[%clk 0:02:57]} 9. O-O-O {[%clk 0:02:58]}  Nc5 {[%clk 0:02:54]} 10. Bd3 {[%clk 0:02:48]}  Nxd3+ {[%clk 0:02:52]} 11. Qxd3 {[%clk 0:02:49]}  Bg4 {[%clk 0:02:46]} 12. Rde1 {[%clk 0:02:41]}  Bf6 {[%clk 0:02:43]} 13. Nd2 {[%clk 0:02:39]}  Qd7 {[%clk 0:02:40]} 14. Qg3 {[%clk 0:02:34]}  Bf5 {[%clk 0:02:37]} 15. Ne4 {[%clk 0:02:17]}  Bxe4 {[%clk 0:02:37]} 16. Rxe4 {[%clk 0:02:18]}  Rfe8 {[%clk 0:02:36]} 17. Qf3 {[%clk 0:02:14]}  Rxe4 {[%clk 0:02:30]} 18. Qxe4 {[%clk 0:02:15]}  d5 {[%clk 0:02:31]} 19. Qf3 {[%clk 0:02:13]}  c6 {[%clk 0:02:27]} 20. Rd1 {[%clk 0:02:12]}  Qf5 {[%clk 0:02:25]} 21. g4 {[%clk 0:02:06]}  Qe6 {[%clk 0:02:24]} 22. Be3 {[%clk 0:02:02]}  Re8 {[%clk 0:02:18]} 23. a3 {[%clk 0:01:48]}  Qe4 {[%clk 0:02:16]} 24. Qxe4 {[%clk 0:01:45]}  Rxe4 {[%clk 0:02:17]} 25. h3 {[%clk 0:01:46]}  h6 {[%clk 0:02:12]} 26. Bxa7 {[%clk 0:01:34]}  Bg5+ {[%clk 0:02:07]} 27. Kb1 {[%clk 0:01:34]}  Re2 {[%clk 0:02:04]} 28. a4 {[%clk 0:01:24]}  g6 {[%clk 0:01:41]} 29. b3 {[%clk 0:01:11]}  Bh4 {[%clk 0:01:37]} 30. Rf1 {[%clk 0:00:48]}  f5 {[%clk 0:01:35]} 31. gxf5 {[%clk 0:00:48]}  gxf5 {[%clk 0:01:36]} 32. a5 {[%clk 0:00:43]}  Kf7 {[%clk 0:01:31]} 33. Kb2 {[%clk 0:00:43]}  f4 {[%clk 0:01:30]} 34. f3 {[%clk 0:00:41]}  Rh2 {[%clk 0:01:30]} 35. Bb8 {[%clk 0:00:24]}  Bg3 {[%clk 0:01:25]} 36. a6 {[%clk 0:00:23]}  bxa6 {[%clk 0:01:24]} 37. Ra1 {[%clk 0:00:23]}  Rxh3 {[%clk 0:01:24]} 38. Rxa6 {[%clk 0:00:24]}  h5 {[%clk 0:01:18]} 39. Rxc6 {[%clk 0:00:24]}  h4 {[%clk 0:01:18]} 40. b4 {[%clk 0:00:24]}  Rh1 {[%clk 0:01:09]} 41. b5 {[%clk 0:00:25]}  h3 {[%clk 0:01:05]} 42. b6 {[%clk 0:00:24]}  h2 {[%clk 0:01:05]} 43. b7 {[%clk 0:00:15]}  Re1 {[%clk 0:00:51]} 44. Rh6 {[%clk 0:00:06]}  Re6 {[%clk 0:00:48]} 45. Rh7+ {[%clk 0:00:02]}  Kg6 {[%clk 0:00:48]} 46. Rxh2 {[%clk 0:00:02]}  Rb6+ {[%clk 0:00:46]} 47. Ka3 {[%clk 0:00:03]}  Bxh2 {[%clk 0:00:44]} 48. Be5 {[%clk 0:00:03]}  Rxb7 {[%clk 0:00:44]} 49. Ka4 {[%clk 0:00:03]}  Kf5 {[%clk 0:00:44]} 50. Bd4 {[%clk 0:00:03]}  Rb2 {[%clk 0:00:43]} 51. Ka5 {[%clk 0:00:04]}  Rxc2 {[%clk 0:00:44]} 0-1


[Site "https://www.chess.com"]

[Event "Titled Tuesday Blitz May 25 2021"]
[White "Mikhailovsky, Vladimir"]
[Black "Babiy, Olga"]
[WhiteFideId "34105414"]
[BlackFideId "14117258"]
[WhiteElo "2308"]
[BlackElo "2213"]
[Result "0-1"]
[Round "02"]
[TimeControl "180+1"]
[Date "2021.05.25"]
[WhiteClock "0:00:03"]
[BlackClock "0:00:19"]

1. e4 {[%clk 0:02:56]}  c5 {[%clk 0:02:59]} 2. Nf3 {[%clk 0:02:56]}  e6 {[%clk 0:03:00]} 3. g3 {[%clk 0:02:56]}  Nc6 {[%clk 0:02:59]} 4. Bg2 {[%clk 0:02:56]}  Nf6 {[%clk 0:02:56]} 5. Qe2 {[%clk 0:02:56]}  e5 {[%clk 0:02:52]} 6. O-O {[%clk 0:02:55]}  Be7 {[%clk 0:02:49]} 7. c3 {[%clk 0:02:55]}  O-O {[%clk 0:02:47]} 8. Na3 {[%clk 0:02:54]}  Re8 {[%clk 0:02:41]} 9. d3 {[%clk 0:02:38]}  d6 {[%clk 0:02:41]} 10. Bg5 {[%clk 0:02:28]}  h6 {[%clk 0:02:40]} 11. Bxf6 {[%clk 0:02:28]}  Bxf6 {[%clk 0:02:41]} 12. Nc4 {[%clk 0:02:29]}  Be6 {[%clk 0:02:38]} 13. a4 {[%clk 0:02:27]}  a6 {[%clk 0:02:35]} 14. Nfd2 {[%clk 0:02:23]}  Qc7 {[%clk 0:02:26]} 15. Ne3 {[%clk 0:01:35]}  b5 {[%clk 0:02:23]} 16. axb5 {[%clk 0:01:30]}  axb5 {[%clk 0:02:23]} 17. Nd5 {[%clk 0:01:31]}  Bxd5 {[%clk 0:02:19]} 18. exd5 {[%clk 0:01:32]}  Ne7 {[%clk 0:02:11]} 19. Ne4 {[%clk 0:01:31]}  Rxa1 {[%clk 0:02:04]} 20. Rxa1 {[%clk 0:01:30]}  Nxd5 {[%clk 0:02:00]} 21. c4 {[%clk 0:01:28]}  Ne7 {[%clk 0:01:35]} 22. Ra6 {[%clk 0:01:23]}  Rd8 {[%clk 0:01:26]} 23. cxb5 {[%clk 0:01:13]}  Qb8 {[%clk 0:01:16]} 24. Nxf6+ {[%clk 0:00:58]}  gxf6 {[%clk 0:01:17]} 25. b6 {[%clk 0:00:41]}  f5 {[%clk 0:01:18]} 26. Qd2 {[%clk 0:00:39]}  Kg7 {[%clk 0:01:17]} 27. Qa5 {[%clk 0:00:37]}  d5 {[%clk 0:00:51]} 28. Ra8 {[%clk 0:00:34]}  Qxa8 {[%clk 0:00:48]} 29. Qxc5 {[%clk 0:00:16]}  Qb7 {[%clk 0:00:48]} 30. d4 {[%clk 0:00:12]}  e4 {[%clk 0:00:44]} 31. Bf1 {[%clk 0:00:10]}  Rb8 {[%clk 0:00:42]} 32. h4 {[%clk 0:00:06]}  Ng8 {[%clk 0:00:40]} 33. b4 {[%clk 0:00:05]}  Nf6 {[%clk 0:00:40]} 34. Qd6 {[%clk 0:00:04]}  Qxb6 {[%clk 0:00:39]} 35. Qe5 {[%clk 0:00:04]}  Re8 {[%clk 0:00:33]} 36. Qxf5 {[%clk 0:00:04]}  Qxb4 {[%clk 0:00:30]} 37. g4 {[%clk 0:00:03]}  Qxd4 {[%clk 0:00:20]} 38. g5 {[%clk 0:00:02]}  hxg5 {[%clk 0:00:19]} 39. hxg5 {[%clk 0:00:03]}  Ng8 {[%clk 0:00:19]} 0-1


[Site "https://www.chess.com"]

[Event "Titled Tuesday Blitz May 25 2021"]
[White "Moon, Benjamin"]
[Black "Vogel, Roven"]
[WhiteFideId "2064847"]
[BlackFideId "12908088"]
[WhiteElo "2530"]
[BlackElo "2516"]
[Result "0-1"]
[Round "02"]
[TimeControl "180+1"]
[Date "2021.05.25"]
[WhiteClock "0:00:05"]
[BlackClock "0:00:02"]

1. d4 {[%clk 0:03:00]}  d5 {[%clk 0:02:59]} 2. Bf4 {[%clk 0:02:59]}  c5 {[%clk 0:02:59]} 3. e3 {[%clk 0:03:00]}  Nc6 {[%clk 0:02:59]} 4. Nc3 {[%clk 0:02:57]}  cxd4 {[%clk 0:02:57]} 5. exd4 {[%clk 0:02:57]}  a6 {[%clk 0:02:57]} 6. Nf3 {[%clk 0:02:58]}  Bg4 {[%clk 0:02:57]} 7. Be2 {[%clk 0:02:48]}  e6 {[%clk 0:02:51]} 8. O-O {[%clk 0:02:42]}  Bxf3 {[%clk 0:02:51]} 9. Bxf3 {[%clk 0:02:42]}  Bd6 {[%clk 0:02:52]} 10. Ne2 {[%clk 0:02:42]}  Nge7 {[%clk 0:02:50]} 11. c3 {[%clk 0:02:40]}  O-O {[%clk 0:02:49]} 12. Qd2 {[%clk 0:02:36]}  Na5 {[%clk 0:02:48]} 13. Bxd6 {[%clk 0:02:25]}  Qxd6 {[%clk 0:02:49]} 14. Qf4 {[%clk 0:02:23]}  Nf5 {[%clk 0:02:47]} 15. Qxd6 {[%clk 0:02:16]}  Nxd6 {[%clk 0:02:48]} 16. Nf4 {[%clk 0:02:10]}  Nac4 {[%clk 0:02:45]} 17. Nd3 {[%clk 0:02:07]}  Nd2 {[%clk 0:02:45]} 18. Rfe1 {[%clk 0:02:07]}  Nxf3+ {[%clk 0:02:45]} 19. gxf3 {[%clk 0:02:07]}  Rfc8 {[%clk 0:02:40]} 20. Kf1 {[%clk 0:02:07]}  h6 {[%clk 0:02:18]} 21. Ke2 {[%clk 0:02:07]}  Kf8 {[%clk 0:02:05]} 22. Rg1 {[%clk 0:02:05]}  Nf5 {[%clk 0:02:04]} 23. Kd2 {[%clk 0:01:52]}  Ke7 {[%clk 0:02:03]} 24. Rae1 {[%clk 0:01:51]}  b5 {[%clk 0:01:56]} 25. a3 {[%clk 0:01:51]}  a5 {[%clk 0:01:56]} 26. Nc5 {[%clk 0:01:42]}  b4 {[%clk 0:01:53]} 27. axb4 {[%clk 0:01:40]}  axb4 {[%clk 0:01:53]} 28. Ra1 {[%clk 0:01:38]}  bxc3+ {[%clk 0:01:52]} 29. bxc3 {[%clk 0:01:37]}  Rcb8 {[%clk 0:01:52]} 30. Nd3 {[%clk 0:01:23]}  g5 {[%clk 0:01:44]} 31. Rgb1 {[%clk 0:01:10]}  Nd6 {[%clk 0:01:43]} 32. Rxb8 {[%clk 0:01:04]}  Rxa1 {[%clk 0:01:41]} 33. Rh8 {[%clk 0:00:55]}  Ra2+ {[%clk 0:01:40]} 34. Ke1 {[%clk 0:00:53]}  Nf5 {[%clk 0:01:37]} 35. Ne5 {[%clk 0:00:50]}  Rc2 {[%clk 0:01:17]} 36. Rc8 {[%clk 0:00:48]}  f6 {[%clk 0:01:02]} 37. Ng4 {[%clk 0:00:36]}  Nxd4 {[%clk 0:00:57]} 38. Kd1 {[%clk 0:00:36]}  Kd7 {[%clk 0:00:45]} 39. Rc5 {[%clk 0:00:35]}  f5 {[%clk 0:00:22]} 40. Ne5+ {[%clk 0:00:22]}  Kd6 {[%clk 0:00:22]} 41. Nd3 {[%clk 0:00:23]}  Nb3 {[%clk 0:00:19]} 42. Rc8 {[%clk 0:00:10]}  Ra2 {[%clk 0:00:17]} 43. Nb4 {[%clk 0:00:03]}  Rxf2 {[%clk 0:00:15]} 44. Rc6+ {[%clk 0:00:03]}  Kd7 {[%clk 0:00:14]} 45. Rb6 {[%clk 0:00:03]}  Nc5 {[%clk 0:00:13]} 46. Rb5 {[%clk 0:00:01]}  Na4 {[%clk 0:00:13]} 47. Rb7+ {[%clk 0:00:02]}  Ke8 {[%clk 0:00:11]} 48. Rh7 {[%clk 0:00:02]}  Nxc3+ {[%clk 0:00:10]} 49. Ke1 {[%clk 0:00:03]}  Rxh2 {[%clk 0:00:11]} 50. Nd3 {[%clk 0:00:03]}  f4 {[%clk 0:00:08]} 51. Kf1 {[%clk 0:00:04]}  Rd2 {[%clk 0:00:07]} 52. Ne5 {[%clk 0:00:04]}  Nd1 {[%clk 0:00:06]} 53. Rxh6 {[%clk 0:00:04]}  Ne3+ {[%clk 0:00:06]} 54. Ke1 {[%clk 0:00:04]}  d4 {[%clk 0:00:06]} 55. Rxe6+ {[%clk 0:00:05]}  Kf8 {[%clk 0:00:05]} 56. Rf6+ {[%clk 0:00:05]}  Ke7 {[%clk 0:00:04]} 57. Ra6 {[%clk 0:00:04]}  d3 {[%clk 0:00:04]} 58. Ng6+ {[%clk 0:00:04]}  Kd8 {[%clk 0:00:03]} 59. Ne5 {[%clk 0:00:05]}  Re2# {[%clk 0:00:02]} 0-1


[Site "https://www.chess.com"]

[Event "Titled Tuesday Blitz May 25 2021"]
[White "Mortazavi, Ali"]
[Black "Weetik, Vjacheslav"]
[WhiteFideId "401323"]
[BlackFideId "4153472"]
[WhiteElo "2339"]
[BlackElo "2469"]
[Result "0-1"]
[Round "02"]
[TimeControl "180+1"]
[Date "2021.05.25"]
[WhiteClock "0:00:09"]
[BlackClock "0:00:08"]

1. Nf3 {[%clk 0:03:00]}  Nf6 {[%clk 0:02:59]} 2. g3 {[%clk 0:03:01]}  d5 {[%clk 0:02:59]} 3. Bg2 {[%clk 0:03:02]}  c6 {[%clk 0:03:00]} 4. O-O {[%clk 0:03:02]}  Bg4 {[%clk 0:03:00]} 5. d3 {[%clk 0:03:03]}  Nbd7 {[%clk 0:03:01]} 6. c4 {[%clk 0:03:03]}  dxc4 {[%clk 0:02:59]} 7. dxc4 {[%clk 0:03:02]}  e5 {[%clk 0:02:52]} 8. Nc3 {[%clk 0:03:00]}  Be7 {[%clk 0:02:48]} 9. Qc2 {[%clk 0:03:01]}  O-O {[%clk 0:02:46]} 10. h3 {[%clk 0:03:01]}  Bh5 {[%clk 0:02:46]} 11. Nh4 {[%clk 0:03:01]}  Re8 {[%clk 0:02:46]} 12. b3 {[%clk 0:02:59]}  Qc7 {[%clk 0:02:42]} 13. Bb2 {[%clk 0:02:59]}  Bf8 {[%clk 0:02:40]} 14. Rad1 {[%clk 0:02:56]}  a5 {[%clk 0:02:37]} 15. a3 {[%clk 0:02:29]}  Nc5 {[%clk 0:02:28]} 16. b4 {[%clk 0:02:23]}  axb4 {[%clk 0:02:28]} 17. axb4 {[%clk 0:02:24]}  Ne6 {[%clk 0:02:16]} 18. Ne4 {[%clk 0:02:12]}  Nxe4 {[%clk 0:01:58]} 19. Bxe4 {[%clk 0:02:12]}  Ng5 {[%clk 0:01:58]} 20. Bg2 {[%clk 0:02:10]}  Bxb4 {[%clk 0:01:52]} 21. Qf5 {[%clk 0:01:46]}  f6 {[%clk 0:00:59]} 22. Rd7 {[%clk 0:01:37]}  Qc8 {[%clk 0:00:46]} 23. Rfd1 {[%clk 0:01:07]}  Bxe2 {[%clk 0:00:37]} 24. f4 {[%clk 0:00:48]}  Bxd1 {[%clk 0:00:22]} 25. fxg5 {[%clk 0:00:48]}  Bc2 {[%clk 0:00:14]} 26. Rxg7+ {[%clk 0:00:43]}  Kxg7 {[%clk 0:00:14]} 27. Qxf6+ {[%clk 0:00:38]}  Kg8 {[%clk 0:00:14]} 28. g6 {[%clk 0:00:26]}  Qe6 {[%clk 0:00:11]} 29. gxh7+ {[%clk 0:00:21]}  Kxh7 {[%clk 0:00:09]} 30. Qf2 {[%clk 0:00:21]}  Bd3 {[%clk 0:00:05]} 31. Qe3 {[%clk 0:00:19]}  Rad8 {[%clk 0:00:04]} 32. Bc1 {[%clk 0:00:19]}  b6 {[%clk 0:00:03]} 33. Nf3 {[%clk 0:00:17]}  Bc5 {[%clk 0:00:03]} 34. Ng5+ {[%clk 0:00:18]}  Kg6 {[%clk 0:00:03]} 35. Nxe6 {[%clk 0:00:16]}  Bxe3+ {[%clk 0:00:04]} 36. Bxe3 {[%clk 0:00:17]}  Rxe6 {[%clk 0:00:04]} 37. h4 {[%clk 0:00:15]}  b5 {[%clk 0:00:03]} 38. Bh3 {[%clk 0:00:16]}  Ree8 {[%clk 0:00:03]} 39. g4 {[%clk 0:00:16]}  bxc4 {[%clk 0:00:02]} 40. h5+ {[%clk 0:00:17]}  Kf6 {[%clk 0:00:03]} 41. g5+ {[%clk 0:00:17]}  Ke7 {[%clk 0:00:03]} 42. Bc5+ {[%clk 0:00:16]}  Kf7 {[%clk 0:00:03]} 43. Bb4 {[%clk 0:00:11]}  Rg8 {[%clk 0:00:03]} 44. g6+ {[%clk 0:00:10]}  Bxg6 {[%clk 0:00:04]} 45. hxg6+ {[%clk 0:00:10]}  Rxg6+ {[%clk 0:00:05]} 46. Kf2 {[%clk 0:00:11]}  Rd3 {[%clk 0:00:05]} 47. Bf1 {[%clk 0:00:09]}  Rf6+ {[%clk 0:00:06]} 48. Ke1 {[%clk 0:00:09]}  Rxf1+ {[%clk 0:00:06]} 49. Kxf1 {[%clk 0:00:09]}  Ke6 {[%clk 0:00:07]} 50. Ke2 {[%clk 0:00:09]}  e4 {[%clk 0:00:08]} 0-1


[Site "https://www.chess.com"]

[Event "Titled Tuesday Blitz May 25 2021"]
[White "Nguyen, Van Huy"]
[Black "Blomqvist, Erik"]
[WhiteFideId "12401064"]
[BlackFideId "1709437"]
[WhiteElo "2443"]
[BlackElo "2460"]
[Result "1/2-1/2"]
[Round "02"]
[TimeControl "180+1"]
[Date "2021.05.25"]
[WhiteClock "0:00:11"]
[BlackClock "0:00:04"]

1. d4 {[%clk 0:03:00]}  Nf6 {[%clk 0:02:57]} 2. c4 {[%clk 0:03:00]}  e6 {[%clk 0:02:57]} 3. Nf3 {[%clk 0:03:00]}  Bb4+ {[%clk 0:02:57]} 4. Nbd2 {[%clk 0:03:00]}  O-O {[%clk 0:02:55]} 5. g3 {[%clk 0:03:00]}  b6 {[%clk 0:02:42]} 6. Bg2 {[%clk 0:03:00]}  Bb7 {[%clk 0:02:42]} 7. O-O {[%clk 0:03:00]}  a5 {[%clk 0:02:41]} 8. Qc2 {[%clk 0:02:56]}  Bxd2 {[%clk 0:02:41]} 9. Qxd2 {[%clk 0:02:52]}  d6 {[%clk 0:02:39]} 10. b3 {[%clk 0:02:52]}  Nbd7 {[%clk 0:02:32]} 11. Bb2 {[%clk 0:02:52]}  Qe7 {[%clk 0:02:33]} 12. Rfd1 {[%clk 0:02:51]}  e5 {[%clk 0:02:23]} 13. Rac1 {[%clk 0:02:35]}  Rad8 {[%clk 0:01:45]} 14. e3 {[%clk 0:02:31]}  Be4 {[%clk 0:01:12]} 15. Qe2 {[%clk 0:02:28]}  c5 {[%clk 0:00:58]} 16. Bh3 {[%clk 0:02:21]}  h6 {[%clk 0:00:50]} 17. Nh4 {[%clk 0:02:09]}  Rfe8 {[%clk 0:00:37]} 18. dxe5 {[%clk 0:01:52]}  dxe5 {[%clk 0:00:30]} 19. f3 {[%clk 0:01:52]}  Bh7 {[%clk 0:00:26]} 20. e4 {[%clk 0:01:52]}  Nf8 {[%clk 0:00:26]} 21. Ng2 {[%clk 0:01:49]}  Ne6 {[%clk 0:00:24]} 22. Bxe5 {[%clk 0:01:48]}  Ng5 {[%clk 0:00:24]} 23. Bc3 {[%clk 0:01:33]}  Nxh3+ {[%clk 0:00:24]} 24. Kf1 {[%clk 0:01:31]}  Rxd1+ {[%clk 0:00:17]} 25. Rxd1 {[%clk 0:01:31]}  Rd8 {[%clk 0:00:18]} 26. Ne3 {[%clk 0:01:30]}  Rxd1+ {[%clk 0:00:17]} 27. Qxd1 {[%clk 0:01:31]}  Bxe4 {[%clk 0:00:15]} 28. fxe4 {[%clk 0:01:17]}  Nxe4 {[%clk 0:00:15]} 29. Nd5 {[%clk 0:01:08]}  Qe6 {[%clk 0:00:13]} 30. Be1 {[%clk 0:01:02]}  Nhg5 {[%clk 0:00:12]} 31. Nf4 {[%clk 0:00:52]}  Qf5 {[%clk 0:00:08]} 32. Kg2 {[%clk 0:00:50]}  Kh7 {[%clk 0:00:07]} 33. Qd8 {[%clk 0:00:46]}  Ne6 {[%clk 0:00:07]} 34. Nxe6 {[%clk 0:00:41]}  Qxe6 {[%clk 0:00:08]} 35. Qd3 {[%clk 0:00:37]}  f5 {[%clk 0:00:08]} 36. a4 {[%clk 0:00:30]}  Qe5 {[%clk 0:00:08]} 37. h4 {[%clk 0:00:21]}  h5 {[%clk 0:00:07]} 38. Qf3 {[%clk 0:00:20]}  Kg6 {[%clk 0:00:06]} 39. Qe3 {[%clk 0:00:18]}  Qb2+ {[%clk 0:00:06]} 40. Kh3 {[%clk 0:00:19]}  Qd4 {[%clk 0:00:05]} 41. Qf3 {[%clk 0:00:16]}  Qe5 {[%clk 0:00:02]} 42. Qe3 {[%clk 0:00:16]}  Qd4 {[%clk 0:00:01]} 43. Qf4 {[%clk 0:00:15]}  Qd3 {[%clk 0:00:01]} 44. Qe5 {[%clk 0:00:13]}  Qf1+ {[%clk 0:00:01]} 45. Kh2 {[%clk 0:00:12]}  Qe2+ {[%clk 0:00:02]} 46. Kh3 {[%clk 0:00:13]}  Qxe1 {[%clk 0:00:02]} 47. Qe8+ {[%clk 0:00:13]}  Kh7 {[%clk 0:00:02]} 48. Qxh5+ {[%clk 0:00:13]}  Kg8 {[%clk 0:00:03]} 49. Qe8+ {[%clk 0:00:13]}  Kh7 {[%clk 0:00:04]} 50. Qh5+ {[%clk 0:00:13]}  Kg8 {[%clk 0:00:04]} 51. Qe8+ {[%clk 0:00:11]}  Kh7 {[%clk 0:00:04]} 52. Qh5+ {[%clk 0:00:11]} 1/2-1/2


[Site "https://www.chess.com"]

[Event "Titled Tuesday Blitz May 25 2021"]
[White "Nitish Belurkar"]
[Black "Praggnanandhaa R"]
[WhiteFideId "5084768"]
[BlackFideId "25059530"]
[WhiteElo "2306"]
[BlackElo "2555"]
[Result "0-1"]
[Round "02"]
[TimeControl "180+1"]
[Date "2021.05.25"]
[WhiteClock "0:00:05"]
[BlackClock "0:00:12"]

1. d4 {[%clk 0:03:00]}  Nf6 {[%clk 0:02:58]} 2. Nf3 {[%clk 0:03:01]}  g6 {[%clk 0:02:58]} 3. Bg5 {[%clk 0:03:02]}  Bg7 {[%clk 0:02:58]} 4. Nbd2 {[%clk 0:03:02]}  O-O {[%clk 0:02:59]} 5. e4 {[%clk 0:03:02]}  d5 {[%clk 0:02:59]} 6. Bxf6 {[%clk 0:03:01]}  exf6 {[%clk 0:02:58]} 7. exd5 {[%clk 0:03:01]}  Re8+ {[%clk 0:02:58]} 8. Be2 {[%clk 0:03:02]}  Qxd5 {[%clk 0:02:52]} 9. O-O {[%clk 0:03:01]}  f5 {[%clk 0:02:52]} 10. c3 {[%clk 0:03:00]}  Nd7 {[%clk 0:02:50]} 11. Bc4 {[%clk 0:02:59]}  Qd6 {[%clk 0:02:50]} 12. Qb3 {[%clk 0:02:58]}  Rf8 {[%clk 0:02:49]} 13. Rfe1 {[%clk 0:02:46]}  Nb6 {[%clk 0:02:17]} 14. Rad1 {[%clk 0:01:33]}  Nxc4 {[%clk 0:02:09]} 15. Nxc4 {[%clk 0:01:34]}  Qd5 {[%clk 0:02:01]} 16. Nce5 {[%clk 0:01:22]}  Qxb3 {[%clk 0:01:51]} 17. axb3 {[%clk 0:01:23]}  c6 {[%clk 0:01:50]} 18. Nd3 {[%clk 0:01:09]}  Bf6 {[%clk 0:01:51]} 19. b4 {[%clk 0:01:05]}  Rd8 {[%clk 0:01:48]} 20. h3 {[%clk 0:01:01]}  Kg7 {[%clk 0:01:47]} 21. Re2 {[%clk 0:00:51]}  b6 {[%clk 0:01:46]} 22. Ra1 {[%clk 0:00:43]}  Be6 {[%clk 0:01:39]} 23. Nfe5 {[%clk 0:00:39]}  Rdc8 {[%clk 0:01:36]} 24. Ra6 {[%clk 0:00:31]}  Rc7 {[%clk 0:01:30]} 25. Re1 {[%clk 0:00:30]}  Rb8 {[%clk 0:01:17]} 26. Nf4 {[%clk 0:00:21]}  Bc8 {[%clk 0:01:13]} 27. Ra3 {[%clk 0:00:21]}  Bg5 {[%clk 0:01:10]} 28. Nfd3 {[%clk 0:00:21]}  Be6 {[%clk 0:01:09]} 29. g3 {[%clk 0:00:19]}  Rbb7 {[%clk 0:00:28]} 30. h4 {[%clk 0:00:19]}  Be7 {[%clk 0:00:28]} 31. Ra6 {[%clk 0:00:15]}  Bc8 {[%clk 0:00:28]} 32. Ra2 {[%clk 0:00:15]}  Bd6 {[%clk 0:00:27]} 33. Kf1 {[%clk 0:00:11]}  Be6 {[%clk 0:00:25]} 34. Ra6 {[%clk 0:00:09]}  Be7 {[%clk 0:00:22]} 35. Kg1 {[%clk 0:00:08]}  c5 {[%clk 0:00:20]} 36. dxc5 {[%clk 0:00:07]}  bxc5 {[%clk 0:00:21]} 37. Nxc5 {[%clk 0:00:07]}  Bxc5 {[%clk 0:00:22]} 38. bxc5 {[%clk 0:00:08]}  Rxc5 {[%clk 0:00:22]} 39. Nc6 {[%clk 0:00:07]}  Rxb2 {[%clk 0:00:21]} 40. Nd4 {[%clk 0:00:06]}  Bd5 {[%clk 0:00:19]} 41. Rxa7 {[%clk 0:00:06]}  Rxc3 {[%clk 0:00:19]} 42. Rae7 {[%clk 0:00:07]}  f4 {[%clk 0:00:16]} 43. R7e2 {[%clk 0:00:06]}  Rb4 {[%clk 0:00:13]} 44. Rd2 {[%clk 0:00:03]}  fxg3 {[%clk 0:00:12]} 45. Ne2 {[%clk 0:00:04]}  gxf2+ {[%clk 0:00:11]} 46. Kxf2 {[%clk 0:00:05]}  Rf3+ {[%clk 0:00:12]} 47. Kg1 {[%clk 0:00:05]}  Rg4+ {[%clk 0:00:12]} 48. Kh2 {[%clk 0:00:05]}  Rxh4+ {[%clk 0:00:13]} 49. Kg1 {[%clk 0:00:05]}  Rg4+ {[%clk 0:00:14]} 50. Kh2 {[%clk 0:00:05]}  Rf2+ {[%clk 0:00:12]} 51. Kh3 {[%clk 0:00:06]}  Be6 {[%clk 0:00:12]} 52. Nd4 {[%clk 0:00:05]} 0-1


[Site "https://www.chess.com"]